[Event "55th Biel Festival MTO 2022"]
[Site "Biel"]
[Date "2022.07.19"]
[Round "6.25"]
[White "Aaron Deepak"]
[Black "Gaehwiler Gabriel"]
[Result "0-1"]
[ECO "A36"]
[WhiteElo "2221"]
[BlackElo "2420"]
[Annotator "TA"]
[PlyCount "150"]
[EventDate "2022.07.13"]
[EventType "swiss"]
[EventCountry "SUI"]
[SourceTitle "playchess.com"]
[Source "ChessBase"]
[SourceQuality "1"]
[TimeControl "40/5400+30:1800+30"]

{[%evp 16,150,0,-1,13,6,12,-12,0,-10,0,0,-14,0,0,0,0,-15,0,-17,-17,-19,-24,-22,0,0,19,-10,44,34,45,35,35,16,14,16,24,0,0,0,0,0,0,0,18,0,0,-20,-25,-22,-16,-58,-51,-75,-52,-57,-43,-104,-104,-104,-65,-60,-59,-73,-123,-112,-121,-136,-135,-128,-131,-129,-129,-129,-129,-129,-121,-128,-127,-514,-136,-136,-136,-136,-78,-135,-133,-135,-129,-136,0,-135,-135,-119,-47,-83,-46,-46,-46,-67,-64,-75,-58,-68,-66,-60,-53,-271,-256,-429,-406,-347,-308,-779,-731,-763,-722,-785,-774,-752,-732,-818,-803,-774,-743,-829,-762,-7831,-6019,-29974,-29975,-29975,-29976,-29987,-29971,-4914,0]} 1. c4 {[%emt 0:00:03]} Nf6 {[%emt 0:05:37]} 2. Nc3 {[%emt 0:00:13]} g6 {[%emt 0:00:17]} 3. e4 {[%emt 0:01:09]} d6 {[%emt 0:07:56]} 4. g3 {[%emt 0:04:14]} Bg7 {[%emt 0:02:23]} 5. Bg2 {[%emt 0:00:06]} O-O {[%emt 0:02:18]} 6. Nge2 {[%emt 0:00:28]} c5 {[%emt 0:00:56]} 7. O-O {[%emt 0:00:36]} Nc6 {[%emt 0:01:48]} 8. d3 {[%emt 0:00:28]} Rb8 {[%emt 0:00:40]} 9. h3 {[%emt 0:01:23]} Ne8 {[%emt 0:10:23] A36: Symmetrical English vs ...g6: 4 Bg2 Bg7.} 10. Be3 {[%emt 0:04:23]} Nd4 {[%emt 0:00:31] has lost popularity (10...Nc7).} 11. Qc1 {[%emt 0:08:55]} Nc7 {[%emt 0:09:36] The position is equal.} 12. Bh6 {[%emt 0:01:43] [#]} Bxh6 $146 {[%emt 0:07:53]} ({Predecessor:} 12... Nce6 13. Bxg7 Kxg7 14. f4 Nxe2+ 15. Nxe2 Nd4 16. Nxd4 cxd4 17. f5 f6 18. b4 Bd7 {0-1 (66) Mammadova,G (2385)-Ilyuchyk,Y (1992) Heraklion 2017}) 13. Qxh6 {[%emt 0:01:26]} b5 {[%emt 0:00:05] With the idea ...bxc4.} 14. b3 {[%emt 0:10:10]} e5 {[%emt 0:09:02]} 15. f4 {[%emt 0:06:10]} f6 {[%emt 0:09:41]} 16. g4 {[%emt 0:12:09]} Qe7 {[%emt 0:11:04]} 17. f5 {[%emt 0:11:07]} Qg7 {[%emt 0:07:02]} 18. Qd2 {[%emt 0:02:16]} b4 {[%emt 0:01:52]} 19. Nd1 {[%emt 0:03:14]} g5 {[%emt 0:03:18]} 20. Kf2 {[%emt 0:06:34]} Qh6 {[%emt 0:00:48]} 21. Ng3 {[%emt 0:04:33]} Qh4 {[%emt 0:01:04]} (21... a5 $11) 22. Ne3 $14 {[%emt 0:00:47]} Bd7 {[%emt 0:00:32]} 23. Bf3 {[%emt 0:01:42]} Qh6 {[%emt 0:02:00]} (23... Qxh3 $2 24. Rh1 Qxh1 25. Rxh1 $18) 24. Ng2 {[%emt 0:01:44]} a5 {[%emt 0:01:15]} (24... Qxh3 $2 25. Rh1 Qxh1 26. Rxh1 $18) 25. h4 {[%emt 0:02:34]} a4 {[%emt 0:00:31]} 26. Bd1 {[%emt 0:03:20]} axb3 {[%emt 0:00:34]} 27. axb3 {[%emt 0:03:44]} Ra8 {[%emt 0:00:06]} 28. Rb1 {[%emt 0:00:36]} Ra3 {[%emt 0:01:14]} 29. Rh1 {[%emt 0:02:56]} Be8 {[%emt 0:01:29]} 30. Rb2 {[%emt 0:02:49]} Bf7 {[%emt 0:00:22]} 31. hxg5 {[%emt 0:02:32]} Qxg5 {[%emt 0:00:05]} 32. Qxg5+ {[%emt 0:00:12]} fxg5 {[%emt 0:00:02]} 33. Rh6 {[%emt 0:00:42]} Rd8 {[%emt 0:01:05]} 34. Ne3 {[%emt 0:01:41]} Kg7 {[%emt 0:00:38]} 35. Rh1 {[%emt 0:00:33][%cal Of5f6]} Ne8 {[%emt 0:00:11] Active counter play!} 36. Nh5+ {[%emt 0:00:45]} (36. Nc2 $15 Rxb3 37. Rxb3 Nxb3 38. Nxb4) 36... Bxh5 $17 {[%emt 0:01:39]} 37. Rxh5 {[%emt 0:00:20]} h6 {[%emt 0:00:04]} 38. Nd5 {[%emt 0:00:15]} Ra1 {[%emt 0:02:00]} 39. Rd2 {[%emt 0:00:16]} Rda8 {[%emt 0:00:25]} 40. Ke3 {[%emt 0:00:28]} Rb1 $1 {[%emt 0:01:16]} 41. f6+ {[%emt 0:30:34]} Nxf6 {[%emt 0:17:55]} 42. Nxf6 {[%emt 0:00:00]} Kxf6 {[%emt 0:06:02]} 43. Rxh6+ {[%emt 0:00:00]} Ke7 {[%emt 0:02:36] White must now prevent ...Kd7.} 44. Rh7+ {[%emt 0:00:00]} Ke6 {[%emt 0:00:53]} 45. Rdh2 {[%emt 0:00:00][%cal Rh2h6]} Rf8 {[%emt 0:00:23]} 46. R2h6+ {[%emt 0:00:00]} Rf6 {[%emt 0:00:05] Really sharp!} 47. Rxf6+ {[%emt 0:00:00]} Kxf6 {[%emt 0:00:02][%mdl 4096] Endgame KRB-KRN} 48. Kd2 {[%emt 0:00:00]} Rb2+ {[%emt 0:00:56]} ({Inferior is} 48... Nxb3+ 49. Bxb3 Rb2+ 50. Ke3 (50. Bc2 b3 $11) 50... Rxb3 51. Rd7 $15) 49. Kc1 {[%emt 0:00:01] [#]} Rg2 {[%emt 0:03:19]} (49... Ra2 $142 $1 50. Rd7 Ra6) 50. Rh6+ {[%emt 0:00:23]} ({White should try} 50. Rd7) 50... Ke7 {[%emt 0:00:08]} 51. Rh7+ {[%emt 0:01:08]} Kd8 {[%emt 0:00:32]} 52. Rh6 {[%emt 0:01:14] Inhibits Ne6.} Ke7 {[%emt 0:01:57]} 53. Rh7+ {[%emt 0:00:18] [#]} Ke8 $1 {[%emt 0:00:06]} 54. Rh6 {[%emt 0:00:30] Prevents Ne6.} Kf7 {[%emt 0:01:34]} (54... Kd7 $17 {...Ne6 is the strong threat.} 55. Rh7+ Ke8 56. Rh8+ Kf7 57. Rh7+ Kf8 58. Rh8+ Kf7 59. Rh7+ Kf8 60. Rh8+ Kf7) 55. Rh7+ {[%emt 0:02:13]} Kg6 {[%emt 0:00:18]} 56. Rd7 {[%emt 0:00:36]} Ne6 {[%emt 0:00:07]} 57. Rxd6 {[%emt 0:00:03]} Kf7 {[%emt 0:00:02]} 58. Rd7+ {[%emt 0:00:23]} Kf8 {[%emt 0:00:38]} 59. Rd6 {[%emt 0:02:29]} Nf4 {[%emt 0:00:13] Strongly threatening ...Ke7.} 60. Kb1 $1 {[%emt 0:00:31]} Ke7 {[%emt 0:00:58] Inhibits Rf6.} 61. Rc6 $2 {[%emt 0:00:11]} (61. Ra6 $1 $15) 61... Nxd3 $19 {[%emt 0:00:57]} 62. Bc2 $2 {[%emt 0:00:11]} (62. Rc7+ Kd6 63. Rc8 Rb2+ 64. Ka1) 62... Rg1+ {[%emt 0:00:13]} 63. Ka2 {[%emt 0:00:11]} Ne1 {[%emt 0:01:23]} 64. Bb1 $2 {[%emt 0:00:42]} (64. Bd1) 64... Rxg4 {[%emt 0:00:33]} 65. Rxc5 {[%emt 0:00:04]} Rg2+ {[%emt 0:00:08]} 66. Ka1 {[%emt 0:00:05]} Nf3 {[%emt 0:00:10]} 67. Rc7+ {[%emt 0:00:26]} Kd6 {[%emt 0:00:22]} 68. Rb7 {[%emt 0:00:47]} Nd4 {[%emt 0:01:09][%cal Rd4b3]} 69. Rxb4 {[%emt 0:00:00]} Kc7 {[%emt 0:00:10] Hoping for ...g4.} 70. c5 {[%emt 0:00:50]} g4 {[%emt 0:00:29]} 71. Bd3 {[%emt 0:00:11]} Rd2 {[%emt 0:00:09] ( -> ...g3)} 72. Ra4 {[%emt 0:01:33]} Rxd3 {[%emt 0:00:13]} 73. Ra7+ {[%emt 0:00:09]} Kc6 {[%emt 0:00:19]} 74. b4 {[%emt 0:00:13]} Nc2+ {[%emt 0:00:22]} 75. Kb2 {[%emt 0:00:03]} g3 $2 {[%emt 0:00:00][%mdl 32768] Weighted Error Value: White=0.16 (very precise) /Black=0.12 (very precise) . Loss on time!?} 0-1

[Event "55th Biel Festival MTO 2022"]
[Site "Biel"]
[Date "2022.07.19"]
[Round "6.26"]
[White "Dushyant Sharma"]
[Black "Mamedov Edgar"]
[Result "0-1"]
[ECO "B12"]
[WhiteElo "2416"]
[BlackElo "2227"]
[Annotator "TA"]
[PlyCount "144"]
[EventDate "2022.07.13"]
[EventType "swiss"]
[EventCountry "SUI"]
[SourceTitle "playchess.com"]
[Source "ChessBase"]
[SourceQuality "1"]
[TimeControl "40/5400+30:1800+30"]

{[%evp 9,144,0,30,30,33,36,27,26,36,31,38,27,33,32,33,29,42,35,39,28,26,0,0,-37,-24,-25,-15,-25,-15,-28,-26,-47,-27,-53,-75,-114,-40,-57,-53,-43,-33,-102,-86,-110,-120,-172,-176,-190,-183,-167,-190,-192,-177,-306,-331,-312,-298,-320,-329,-669,-659,-602,-550,-555,-550,-551,-540,-528,-520,-556,-544,-709,-528,-566,-566,-558,-556,-785,-768,-823,-800,-733,-572,-787,-758,-740,-596,-593,-573,-527,-480,-527,-478,-741,-465,-688,-465,-1302,-1476,-2264,-1557,-1793,-2570,-3634,-3671,-2233,-2233,-29966,-29969,-29974,-29967,-29970,-29971,-29972,-29974,-29975,-29973,-29959,-6021,-29975,-29976,-29975,-29976,-29977,-29973,-29981,-29982,-29982,-29983,-29983,-29984,-29984,-29980,-29980,-29980,-29982,-29983]} 1. e4 {[%emt 0:00:04]} c6 {[%emt 0:00:18]} 2. d4 {[%emt 0:00:35]} d5 {[%emt 0:00:19]} 3. e5 {[%emt 0:02:43]} c5 {[%emt 0:00:54]} 4. dxc5 {[%emt 0:01:46]} e6 {[%emt 0:00:42]} 5. a3 {[%emt 0:01:30]} Nc6 {[%emt 0:01:18]} 6. Nf3 $1 {[%emt 0:03:33] B12: Caro-Kann: Advance Variation.} Bxc5 {[%emt 0:00:45]} 7. b4 {[%emt 0:00:29] Against Qa5} Bb6 {[%emt 0:01:17]} 8. Bb2 {[%emt 0:00:18] White has an edge.} f6 {[%emt 0:01:41]} 9. Bd3 {[%emt 0:02:00]} fxe5 $1 {[%emt 0:02:16]} 10. O-O {[%emt 0:01:33]} Nf6 {[%emt 0:03:55] [#] ...e4 is the strong threat.} 11. Nxe5 {[%emt 0:00:09]} O-O {[%emt 0:01:08]} 12. Nd2 {[%emt 0:01:27][%cal Bb1d2,Bd2f3,Bf3g5][%mdl 32]} a5 {[%emt 0:04:15]} 13. b5 {[%emt 0:02:25] 13.c4 is vanishing.} Nxe5 {[%emt 0:00:52]} 14. Bxe5 {[%emt 0:00:07]} Bd7 {[%emt 0:02:20][%cal Bc8d7,Bd7e8,Be8f7][%mdl 32]} 15. Nf3 {[%emt 0:22:52] [#]} Be8 $146 {[%emt 0:17:05]} ({Predecessor:} 15... Ng4 16. h3 Rxf3 17. hxg4 Rf7 18. c3 Qg5 19. Bd4 Bc7 20. Be3 Qh4 21. f4 e5 {½-½ (54) Koziol,K (2290)-Kaczmarek,A (2398) Pokrzywna 2018}) 16. Ng5 {[%emt 0:22:16]} Qe7 {[%emt 0:01:52]} 17. Qe2 {[%emt 0:02:41]} h6 {[%emt 0:08:38]} 18. Nh3 {[%emt 0:00:45]} Nd7 {[%emt 0:18:06]} 19. Rae1 {[%emt 0:01:02]} Bf7 {[%emt 0:03:26]} 20. Bb2 {[%emt 0:12:52]} Rae8 {[%emt 0:06:36]} 21. Qg4 {[%emt 0:06:33][%csl Gb2][%cal Rg4g7] [#]} e5 $1 {[%emt 0:00:18]} 22. c4 {[%emt 0:04:57]} dxc4 {[%emt 0:14:11]} (22... d4 $17 {White must now prevent ...Nc5.} 23. f4 Nf6) 23. Bxc4 $15 {[%emt 0:00:29]} Bxc4 {[%emt 0:00:52]} 24. Qxc4+ {[%emt 0:00:02]} Qf7 {[%emt 0:00:26]} 25. Qh4 {[%emt 0:01:50]} (25. Qxf7+ $15 Rxf7 26. Re2) 25... Qb3 {[%emt 0:02:03][%csl LRb2,LRb5] Black continues to play with concentration.} 26. Bc1 {[%emt 0:04:27][%cal Oc1h6]} Nf6 {[%emt 0:03:43] Black is more active.} 27. a4 {[%emt 0:01:14]} (27. Be3 $17 {was necessary.} Bxe3 28. Rxe3 Qxb5 29. Qg3) 27... Bd4 $19 {[%emt 0:00:55]} 28. Qg3 {[%emt 0:01:37]} Qxg3 {[%emt 0:00:33]} 29. hxg3 {[%emt 0:00:01]} Rc8 {[%emt 0:00:45]} 30. Bd2 {[%emt 0:02:14]} b6 {[%emt 0:00:33]} 31. Rc1 {[%emt 0:00:30]} (31. Be3 {was called for.}) 31... Ne4 {[%emt 0:00:18][%csl LRd2,LRg3]} 32. Be3 {[%emt 0:00:44]} Nc3 {[%emt 0:01:54]} 33. Bxd4 {[%emt 0:00:42]} exd4 {[%emt 0:00:19]} 34. Rce1 {[%emt 0:00:16] Prevents Ne2+.} (34. Rc2) 34... d3 {[%emt 0:00:31]} 35. f3 {[%emt 0:00:39]} d2 {[%emt 0:00:42]} 36. Ra1 {[%emt 0:00:08]} Rfd8 {[%emt 0:01:36]} 37. Nf2 {[%emt 0:00:11] Prevents d1Q.} Rc4 {[%emt 0:00:28]} 38. Nd1 {[%emt 0:00:39]} Nxa4 {[%emt 0:00:27]} 39. Kf2 {[%emt 0:00:20]} Nc5 {[%emt 0:00:30]} 40. Ke2 {[%emt 0:00:20]} Nb3 {[%emt 0:00:46]} 41. Ra3 {[%emt 0:02:53]} Nc1+ {[%emt 0:06:14]} 42. Kf2 {[%emt 0:05:05]} Rc5 {[%emt 0:06:26]} 43. Re3 {[%emt 0:04:06]} Rxb5 {[%emt 0:03:35]} 44. Rh1 {[%emt 0:00:09]} Nd3+ {[%emt 0:02:32]} 45. Ke2 {[%emt 0:00:39]} Nb2 {[%emt 0:04:04]} 46. Nf2 {[%emt 0:00:42]} d1=Q+ {[%emt 0:05:00]} 47. Nxd1 {[%emt 0:00:07]} Nxd1 {[%emt 0:00:13]} 48. Rxd1 {[%emt 0:00:08][%mdl 4096] Endgame KRR-KRR} Rb2+ {[%emt 0:00:24]} 49. Ke1 {[%emt 0:00:06]} Rxd1+ {[%emt 0:00:19]} 50. Kxd1 {[%emt 0:00:06]} Rxg2 {[%emt 0:00:07] KR-KR} 51. g4 {[%emt 0:00:41]} (51. Re8+ $142 Kf7 52. Rb8) 51... a4 {[%emt 0:03:48][%cal Ba5a4,Ba4a3][%mdl 32]} 52. Kc1 {[%emt 0:02:00]} (52. Re8+ $142 Kf7 53. Ra8) 52... b5 {[%emt 0:00:47][%cal Bb6b5,Bb5b4][%mdl 32]} 53. Kb1 {[%emt 0:02:06]} (53. Re8+ $142 Kf7 54. Rb8) 53... Rf2 {[%emt 0:00:14] Threatens to win with ...b4.} 54. Ka1 {[%emt 0:00:45]} Kh7 {[%emt 0:00:11]} 55. Rd3 {[%emt 0:00:31]} b4 {[%emt 0:00:49] Strongly threatening ...a3.} 56. Re3 {[%emt 0:03:12]} a3 {[%emt 0:00:40]} 57. Rb3 {[%emt 0:00:23]} Kg6 {[%emt 0:00:29][%cal Of2b2] ( -> ...Rb2!)} 58. Rd3 {[%emt 0:03:37]} Kg5 {[%emt 0:00:53]} 59. Rb3 {[%emt 0:00:09]} Kf4 {[%emt 0:01:02]} 60. Rxb4+ {[%emt 0:00:07]} Kxf3 {[%emt 0:00:07]} 61. Rb7 {[%emt 0:00:17]} g5 {[%emt 0:00:50]} 62. Rb6 {[%emt 0:00:07]} Rh2 {[%emt 0:00:46]} 63. Rb4 {[%emt 0:00:37]} Rh4 {[%emt 0:00:42]} (63... h5 $142 64. gxh5 g4 65. Rc4 g3 66. Rc3+ Kf2 67. Rc2+ Ke1 68. Rc1+ Kd2 69. Rg1 g2 70. Ka2 Ke2 71. Kb3 Kf2 72. Rd1 g1=Q 73. Rxg1 Kxg1 74. Kxa3 Rxh5 75. Kb4 Kf2 76. Kc3 Ke3 77. Kc4 Re5 78. Kb3 Kd3 79. Kb4 Rg5 80. Kb3 Rg4 81. Kb2 Rb4+ 82. Ka3 Kc3 83. Ka2 Rh4 84. Kb1 Ra4 85. Kc1 Ra1#) 64. Kb1 {[%emt 0:00:19]} Rxg4 {[%emt 0:00:18] Black mates.} 65. Rb3+ {[%emt 0:00:05]} Kg2 {[%emt 0:00:36]} 66. Rxa3 {[%emt 0:00:09]} Rc4 {[%emt 0:00:58]} 67. Ra6 {[%emt 0:00:23]} g4 {[%emt 0:00:17][%cal Bg5g4,Bg4g3,Bg3g2][%mdl 32]} 68. Rxh6 {[%emt 0:00:07]} g3 {[%emt 0:00:09]} 69. Kb2 {[%emt 0:00:06]} Kg1 {[%emt 0:00:20]} 70. Kb3 {[%emt 0:00:12]} Rc8 {[%emt 0:00:11]} 71. Rg6 {[%emt 0:00:25]} g2 {[%emt 0:00:13]} 72. Rf6 {[%emt 0:00:03]} Rh8 {[%emt 0:00:16] Weighted Error Value: White=0.54/Black=0.18 (very precise)} 0-1

[Event "55th Biel Festival MTO 2022"]
[Site "Biel"]
[Date "2022.07.19"]
[Round "6.27"]
[White "Materia, Marco"]
[Black "Schlegel Igor"]
[Result "1-0"]
[ECO "E61"]
[WhiteElo "2409"]
[BlackElo "2194"]
[Annotator "TA"]
[PlyCount "87"]
[EventDate "2022.07.13"]
[EventType "swiss"]
[EventCountry "SUI"]
[SourceTitle "playchess.com"]
[Source "ChessBase"]
[SourceQuality "1"]
[TimeControl "40/5400+30:1800+30"]

{[%evp 14,87,0,0,0,0,5,0,0,0,0,-18,-20,-45,-43,-41,-41,-45,-43,-41,-40,-23,-24,-20,-10,-6,-6,-28,39,0,56,51,225,0,0,0,0,0,0,0,16,20,21,9,13,16,10,15,53,20,145,0,0,0,56,16,39,0,0,-7,41,0,35,36,105,95,111,129,370,287,286,277,1049,1039,29986,29987]} 1. d4 {[%emt 0:00:02]} Nf6 {[%emt 0:00:05]} 2. c4 {[%emt 0:00:03]} g6 {[%emt 0:00:04][%cal Bg7g6,Bg6g5,Bg5g4][%mdl 32]} 3. Nc3 {[%emt 0:00:04]} Bg7 {[%emt 0:00:04]} 4. Nf3 {[%emt 0:00:04]} d6 {[%emt 0:00:08]} 5. Bg5 {[%emt 0:00:04][%cal Bc1g5,Bg5h4,Bh4g3][%mdl 32]} h6 {[%emt 0:00:17]} 6. Bh4 {[%emt 0:00:05]} g5 {[%emt 0:01:36]} 7. Bg3 {[%emt 0:00:03]} Nh5 {[%emt 0:00:06]} 8. e3 {[%emt 0:00:04]} c5 {[%emt 0:00:35] E61: King's Indian: Early deviations for White, including Smyslov System.} 9. Be2 {[%emt 0:00:03]} g4 {[%emt 0:04:22]} 10. Nh4 {[%emt 0:00:29]} Nxg3 {[%emt 0:00:20] The position is equal.} 11. hxg3 {[%emt 0:00:04]} h5 {[%emt 0:00:09]} 12. Rc1 {[%emt 0:05:21] [#]} Qb6 $146 {[%emt 0:00:47][%cal Rc5d4]} ({Predecessor:} 12... cxd4 13. exd4 Nc6 14. d5 Ne5 15. O-O Bd7 16. Ne4 Rc8 17. Re1 Bh6 18. Rc2 Qa5 {1-0 (36) Materia,M (2398)-Kapnisis,S (2450) Heraklion 2022}) 13. Rc2 {[%emt 0:05:44]} cxd4 {[%emt 0:32:29]} 14. Nd5 {[%emt 0:00:14]} Qa5+ {[%emt 0:01:48]} 15. b4 {[%emt 0:00:19]} Qd8 {[%emt 0:00:03] White must now prevent ...e6.} 16. exd4 {[%emt 0:00:26]} Nc6 {[%emt 0:00:45]} 17. Rd2 {[%emt 0:06:33]} e6 {[%emt 0:05:57]} 18. Ne3 {[%emt 0:06:33]} Nxb4 {[%emt 0:21:47]} 19. O-O {[%emt 0:10:17]} O-O {[%emt 0:01:16]} 20. a3 {[%emt 0:05:34]} Nc6 {[%emt 0:09:52]} (20... Na6 $1 $11) 21. d5 $14 {[%emt 0:02:00]} Ne7 {[%emt 0:00:06]} (21... Ne5 $11) 22. c5 $1 {[%emt 0:04:51]} dxc5 $2 {[%emt 0:07:46] [#]} (22... e5 $14) 23. d6 $2 {[%emt 0:05:47]} ({Only move:} 23. dxe6 $1 $18 Bd4 24. exf7+ Kxf7 25. Nc2) 23... Nc6 $1 $11 {[%emt 0:00:03] Hoping for ...Nd4.} 24. d7 {[%emt 0:00:09]} Nd4 {[%emt 0:00:17]} 25. dxc8=Q {[%emt 0:00:47]} Rxc8 {[%emt 0:00:06]} 26. Nc2 {[%emt 0:12:43]} Qa5 {[%emt 0:00:46]} 27. Nxd4 {[%emt 0:01:24]} cxd4 {[%emt 0:00:14]} 28. a4 {[%emt 0:02:02]} Rc3 {[%emt 0:00:38]} 29. Bd3 {[%emt 0:01:45]} Rfc8 {[%emt 0:00:23][%cal Oc3c1]} 30. Rb2 {[%emt 0:07:10]} Qc7 {[%emt 0:03:35]} 31. Rb1 {[%emt 0:08:48]} Qe7 {[%emt 0:04:22] [#]} (31... b6 $11 {remains equal.}) 32. Be4 {[%emt 0:05:02]} (32. Qe2 $1 $16 {[%cal Re2e4]}) 32... b6 {[%emt 0:00:10][%cal Od4d3]} 33. Qd2 {[%emt 0:01:11][%cal Oa4a5] Prevents d3.} R8c4 {[%emt 0:04:28]} (33... R8c5 $11) 34. Rb5 {[%emt 0:02:25]} (34. a5 $5) 34... Rc5 {[%emt 0:01:01]} 35. Rd1 {[%emt 0:01:59]} Qf6 {[%emt 0:00:35]} 36. Rbb1 {[%emt 0:01:46]} R5c4 {[%emt 0:00:43]} (36... Qg5 $11 {was preferrable.}) 37. Qa2 {[%emt 0:01:21]} (37. a5 $5) 37... Qe7 {[%emt 0:00:38]} 38. a5 {[%emt 0:01:02]} bxa5 {[%emt 0:00:23]} (38... Qa3 $14 39. Qxa3 Rxa3) 39. Qxa5 $16 {[%emt 0:00:21] Threatens to win with Rb8+.} Rc5 {[%emt 0:00:42]} 40. Rb8+ {[%emt 0:01:55]} Rc8 $2 {[%emt 0:00:06]} (40... Bf8 $16 41. Qa4 R3c4) 41. Rxc8+ {[%emt 0:32:54]} Rxc8 {[%emt 0:30:01]} 42. Qxh5 {[%emt 0:00:07]} f5 $2 {[%emt 0:00:06] [#]} (42... Rc5 43. Qxg4 Qg5) 43. Nxf5 $1 $18 {[%emt 0:00:15][%mdl 512]} exf5 {[%emt 0:00:04]} (43... Qc5 44. Nxg7) 44. Bd5+ {[%emt 0:00:07] Weighted Error Value: White=0.23 (precise) /Black=0.51} 1-0

[Event "55th Biel Festival MTO 2022"]
[Site "Biel"]
[Date "2022.07.19"]
[Round "6.28"]
[White "Song, Julien"]
[Black "Sadeghi, Hassan Roger"]
[Result "1-0"]
[ECO "D24"]
[WhiteElo "2391"]
[BlackElo "2068"]
[Annotator "TA"]
[PlyCount "61"]
[EventDate "2022.07.13"]
[EventType "swiss"]
[EventCountry "SUI"]
[SourceTitle "playchess.com"]
[Source "ChessBase"]
[SourceQuality "1"]
[TimeControl "40/5400+30:1800+30"]

{[%evp 12,61,37,9,50,40,47,50,52,52,48,48,62,47,75,75,125,68,62,68,71,0,53,12,54,47,43,40,37,6,14,8,22,15,21,0,0,0,72,54,73,72,95,74,191,20,385,385,542,543,2238,2032]} 1. d4 {[%emt 0:00:04][%cal Bd2d4,Bd4d5][%mdl 32]} d5 {[%emt 0:00:21]} 2. c4 {[%emt 0:00:09]} dxc4 {[%emt 0:00:30]} 3. e4 {[%emt 0:01:02]} c5 {[%emt 0:09:19]} 4. d5 {[%emt 0:01:33]} a6 {[%emt 0:01:31]} 5. a4 {[%emt 0:02:00]} Nf6 {[%emt 0:01:04]} 6. Nc3 {[%emt 0:00:19]} e6 {[%emt 0:00:40]} 7. Nf3 {[%emt 0:08:23]} (7. Bxc4 $5 {[%cal Rg1f3]} exd5 8. Nxd5 $14) 7... Nxe4 {[%emt 0:02:32] D24: Queen's Gambit Accepted: 3 Nf3 Nf6 4 Nc3.} 8. Nxe4 {[%emt 0:06:53]} exd5 {[%emt 0:00:30]} 9. Nc3 {[%emt 0:18:25] Pair of Knights!} Be6 {[%emt 0:00:49] White is slightly better.} 10. Ng5 $1 {[%emt 0:08:43]} Nc6 {[%emt 0:01:30]} 11. Nxe6 {[%emt 0:02:20]} fxe6 {[%emt 0:03:57] [#]} 12. g3 $146 {[%emt 0:00:07] Bh3 is the strong threat.} ({Predecessor:} 12. Be2 Nd4 13. Bg4 Qf6 14. O-O Bd6 15. Bxe6 Nxe6 16. Nxd5 Qf7 17. Qg4 O-O 18. Qxc4 {0-1 (62) Karttunen,M (2409)-Rantanen,Y (2349) Jyvaskyla 2005}) 12... Nd4 {[%emt 0:08:33]} ({Not} 12... d4 13. Ne4 $16 (13. Bxc4 dxc3 14. bxc3 Qxd1+ 15. Kxd1 O-O-O+ 16. Kc2 e5 $11)) 13. Bh3 {[%emt 0:01:48] Strongly threatening 0-0.} Be7 {[%emt 0:04:24]} ({Black should try} 13... Bd6) 14. O-O {[%emt 0:06:07]} ({White should play} 14. Be3 $16) 14... O-O $14 {[%emt 0:04:35]} 15. Ne2 {[%emt 0:04:14]} e5 {[%emt 0:04:18]} 16. Ra3 {[%emt 0:12:35]} (16. Bg2 $16) 16... Bf6 {[%emt 0:09:03]} (16... Qc7 $11) 17. Bg2 {[%emt 0:01:53][%cal Ob2b3] White wants to play b3!} b5 {[%emt 0:10:35]} 18. axb5 $1 {[%emt 0:05:54]} axb5 {[%emt 0:00:16]} 19. Rxa8 {[%emt 0:00:13]} Qxa8 {[%emt 0:00:02]} 20. Nc3 {[%emt 0:00:18][%cal Be2c3,Bc3d1,Bd1e3,Be3d5][%mdl 32]} e4 {[%emt 0:01:06]} 21. Qh5 $36 {[%emt 0:00:36][%mdl 2048] White fights for an advantage.} Rd8 {[%emt 0:00:26]} 22. Bg5 {[%emt 0:02:14] And now Bxf6 would win.} Bxg5 {[%emt 0:08:12]} 23. Qxg5 {[%emt 0:00:07]} b4 {[%emt 0:00:07]} 24. Nd1 {[%emt 0:03:21]} Ne2+ {[%emt 0:11:11]} ({Better is} 24... Qb8 $11) 25. Kh1 {[%emt 0:00:05] Hoping for f3.} c3 {[%emt 0:00:05] [#]} 26. bxc3 {[%emt 0:00:57]} ({Of course not} 26. Ne3 cxb2 27. Nf5 Rd7 28. Nh6+ Kh8 $11) 26... bxc3 {[%emt 0:03:05]} 27. Ne3 {[%emt 0:00:15] aiming for Nf5.} Nd4 {[%emt 0:08:57]} (27... Kh8 $16 {keeps fighting.}) 28. Rc1 $2 {[%emt 0:04:57]} (28. Qe7 $18) 28... Rf8 $2 {[%emt 0:02:51][%mdl 8192]} (28... h6 $11 29. Qe7 Rb8) 29. Nxd5 $18 {[%emt 0:01:33]} Qa3 {[%emt 0:02:31]} (29... Rxf2 {was worth a try.} 30. Bxe4 Qe8 31. Ne7+ Kh8 32. Qxc5 Rf7 33. Qxd4 Rxe7) 30. Bxe4 {[%emt 0:02:01]} Qb2 {[%emt 0:01:06] [#]} 31. Bxh7+ $1 {[%emt 0:02:01][%mdl 512] Weighted Error Value: White=0.25 (precise) /Black=0.67} 1-0